{"text_format":"1","workbook":"xlsx","n_sheets":6,"sheets":["Açılış","Bilgi Girişi","Yurtiçi Sürekli Görev Yolluğu","H Cetveli","Ayarlar","ÖEB"],"not_rendered":{"charts":0,"images":2,"macros":1,"external_links":0,"defined_names":0,"comments":1,"pivot_tables":0},"unopened":[],"bounds":{"document_bytes":16777216,"sheet_cells":100000,"rows_first":2000,"rows_last":500,"rows_between":2000,"halvings":0,"cell_chars":16384,"cell_head_chars":4096},"cells_cut":0,"cells_raw":0,"read":"whole","date_system":"1900"}

{"sheet":"Açılış","index":0,"n_rows":0,"n_cols":0,"rows_kept":0,"cut":false,"hidden":false,"merged":[]}

{"sheet":"Bilgi Girişi","index":1,"n_rows":15,"n_cols":25,"rows_kept":15,"cut":false,"hidden":false,"merged":[[14,1,14,4],[0,2,0,5],[0,14,0,17],[6,17,6,21],[0,18,0,19],[8,1,8,7],[9,1,9,7],[10,1,10,7],[11,1,11,7],[12,1,12,4],[13,1,13,4],[0,6,0,9],[5,1,5,5],[5,9,5,13],[6,1,6,7],[7,1,7,7],[7,9,7,14]]}
[null,null,"Ek gösterge ile Gündelik Derece-Kademe girildiğinde otomatik hesaplanacaktır. 8 sonrası dereceler 8 olarak girilebilir.",null,null,null,"ÇANKIRI-YAPRAKLI İLÇE MİLLİ EĞİTİM MÜDÜRLÜĞÜ",null,null,null,"Km hesaplamak için tıklayınız.","Ankara Rayiç Bedeller İçin Tıklayınız.","Eşi yolluk alanlar için %2.5 almayanlar için %5",null,"ÇANKIRI-YAPRAKLI İLÇE MİLLİ EĞİTİM MÜDÜRLÜĞÜ"]
["ADI VE SOYADI","TC KİMLİK NO","UNVANI","DERECE","KADEME","EK GÖSTERGESİ","GÜNDELİĞİ","ATAMA TARİHİ (Kararnamede Yazan Tarih)","GÖREV YERİ İL/İLÇE","ATANDIĞI YER İL/ İLÇE","MESAFE (KM)","BİR KİŞİLİK RAYİÇ","YER DEĞİŞTİRME YÜZDESİ","BANKA-ŞUBE ADI","IBAN","YOLLUK YAPILIŞ TARİHİ","ÇALIŞTIĞI KURUM","1. Aile Ferdi Yakınlığı","1. Aile Ferdi Adı-Soyadı","2. Aile Ferdi Yakınlığı","2. Aile Ferdi Adı-Soyadı","3. Aile Ferdi Yakınlığı","3. Aile Ferdi Adı-Soyadı","4. Aile Ferdi Yakınlığı","4. Aile Ferdi Adı-Soyadı"]
[null,null,null,null,null,{"$f":"IF(D3=1,Ayarlar!I9,IF(D3=2,Ayarlar!I8,IF(D3=3,Ayarlar!I7,IF(D3=4,Ayarlar!I6,IF(D3=5,Ayarlar!I5,IF(D3=6,Ayarlar!I4,IF(D3=7,Ayarlar!I3,IF(D3=8,Ayarlar!I2))))))))","v":false},{"$f":"IF(D3=1,Ayarlar!L4,IF(D3<=4,Ayarlar!L3,IF(D3>4,Ayarlar!L2)))","v":47.65}]
[]
[]
[null,"YURTİÇİ SÜREKLİ GÖREV YOLLUK BİLDİRİMİ İSTENİLEN EVRAKLAR",null,null,null,null,null,null,null,"YURTİÇİ SÜREKLİ GÖREV YOLLUĞUNDA DİKKAT EDİLECEK HUSUSLAR"]
[null,"1        ATAMA KARARNAMESİ ",null,null,null,null,null,null,null,"1 Kendisi için yurtiçi gündeliğin yirmi katı"]
[null,"2        GÖREVDEN AYRILIŞ YAZISI veya GÖREVE BAŞLAMA YAZISI ",null,null,null,null,null,null,null,"2 Harcıraha müstahak(bakmakla yükümlü olunan anne-baba ve kardeş dahil) aile fertlerinin her biri için gündeliğin on katı(Bu tutar gündeliğin kırk katını aşamaz)"]
[null,"3         PERSONEL NAKİL BİLDİRİMİ ",null,null,null,null,null,null,null,"3 Yalnızca atanan memur için her bir kilometre başına gündeliğin %5i"]
[null,"4        OTOBÜS RAYİÇ BEDELİ OTOBÜS İŞLETME MÜDÜRLÜĞÜNDEN ",null,null,null,null,null,null,null,"4 Her bir aile ferdi için otobüs raiç bedeli"]
[null,"5        Km yi gösterir Belge (Karayolları Genel Müdürlüğü İnternet Sayfasından İndirilecek) ",null,null,null,null,null,null,null,"5 Eşin aynı yere tayin olması durumunda her bir kilometre başına gündeliğin %2,5'u"]
[null,"6        YURTİÇİ SÜREKLİ GÖREV YOLLUK BİLDİRİMİ (SADECE KİŞİ ADINI SOYADINI ÜNVANINI DOLDURUP İMZASINI ATACAK BİRİM YETKİLİ KISMI OKUL MÜDÜRÜNCE TASDİK EDİLEREK MÜHÜRLÜNECEK) ",null,null,null,null,null,null,null,"6 Yolculukta geçen süre için her bir aile ferdine gün sayısı kadar yevmiye ödenir."]
[null,"·        İKAMETGAH BELGESİ ( İhtiyaç Duyulursa)"]
[null,"·        AİLE DURUM BELGESİ (İhtiyaç Duyulursa)"]
[null,"·        NÜFUS KAYIT ÖRNEĞİ (İhtiyaç Duyulursa)"]

{"sheet":"Yurtiçi Sürekli Görev Yolluğu","index":2,"n_rows":29,"n_cols":15,"rows_kept":29,"cut":false,"hidden":false,"merged":[[18,0,18,5],[18,13,18,14],[20,0,20,14],[21,0,21,14],[17,2,17,4],[17,13,17,14],[13,0,17,1],[15,2,15,4],[15,13,15,14],[16,2,16,4],[16,13,16,14],[13,2,13,4],[13,13,13,14],[14,2,14,4],[14,13,14,14],[24,8,24,10],[24,12,29,13],[25,8,25,10],[26,8,26,10],[27,8,27,10],[28,8,28,10],[11,2,11,4],[11,13,11,14],[12,2,12,4],[12,13,12,14],[9,0,12,1],[9,2,9,4],[9,13,9,14],[10,2,10,4],[10,13,10,14],[5,13,8,14],[6,11,6,12],[7,6,8,6],[7,7,8,7],[7,8,8,8],[7,10,8,10],[7,11,8,11],[7,12,8,12],[5,10,5,12],[5,0,8,1],[5,2,8,4],[5,5,8,5],[5,6,6,8],[5,9,8,9],[2,0,3,1],[2,6,2,10],[2,11,3,13],[2,14,3,14],[4,0,4,1],[4,2,4,5],[2,2,3,3],[2,4,3,5],[4,13,4,14],[3,6,4,10],[0,0,0,1],[0,2,0,5],[0,12,0,14],[1,0,1,1],[1,2,1,5],[1,6,1,10],[1,12,1,14],[0,6,0,10]]}
["ADI - SOYADI",null,{"$f":"'Bilgi Girişi'!A3","v":0},null,null,null,null,null,null,null,null,"DAİRESİ",{"$f":"'Bilgi Girişi'!I3","v":0}]
["ÜNVANI",null,{"$f":"'Bilgi Girişi'!C3","v":0},null,null,null,"YURTİÇİ SÜREKLİ  GÖREV ",null,null,null,null,"BÜTÇE YILI",2021]
["AYLIK KADRO DERECESİ VE EK GÖSTERGESİ",null,{"$f":"'Bilgi Girişi'!D3","v":0},null,{"$f":"'Bilgi Girişi'!F3","v":false},null,"YOLLUĞU BİLDİRİMİ",null,null,null,null,"ÖNCEDEN AVANS ALMIŞSA ALDIĞI SAYMANLIK VE TARİHİ",null,null,"HAYIR"]
[]
["GÜNLÜĞÜ",null,{"$f":"'Bilgi Girişi'!G3","v":47.65},null,null,null,null,null,null,null,null,"ATAMA TARİHİ     ",null,{"$f":"'Bilgi Girişi'!H3","v":"00:00:00"}]
["NEREDEN / NEREYE GİDİLDİĞİ",null,"ADI SOYADI",null,null,"AKRABALIK DERECESİ","GÜNDELİKLER",null,null,"TAŞIT ÜCRETİ","YER DEĞİŞTİRME GİDERİ",null,null,"TOPLAM"]
[null,null,null,null,null,null,null,null,null,null,"SABİT UNSUR","DEĞİŞKEN UNSUR"]
[null,null,null,null,null,null,"GÜN SAYISI","YEVMİYE","TUTAR ",null,"TL","MESAFE KM/MİL","TUTAR"]
[]
[{"$f":"'Bilgi Girişi'!I3","v":0},null,{"$f":"'Bilgi Girişi'!A3","v":0},null,null,"Kendisi",1,{"$f":"'Bilgi Girişi'!G3","v":47.65},{"$f":"G10*H10","v":47.65},{"$f":"'Bilgi Girişi'!L3","v":0},{"$f":"H10*20","v":953},{"$f":"'Bilgi Girişi'!K3","v":0},{"$f":"L10*H10*'Bilgi Girişi'!M3","v":0},{"$f":"I10+J10+K10+M10","v":1000.65}]
[null,null,{"$f":"'Bilgi Girişi'!S3","v":0},null,null,{"$f":"'Bilgi Girişi'!R3","v":0},1,{"$f":"H10","v":47.65},{"$f":"G11*H11","v":47.65},{"$f":"'Bilgi Girişi'!L3","v":0},{"$f":"H11*10","v":476.5},null,null,{"$f":"I11+J11+K11+M11","v":524.15}]
[null,null,{"$f":"'Bilgi Girişi'!U3","v":0},null,null,{"$f":"'Bilgi Girişi'!T3","v":0},1,{"$f":"H11","v":47.65},47.65,{"$f":"'Bilgi Girişi'!L3","v":0},{"$f":"H12*10","v":476.5},null,null,524.15]
[null,null,{"$f":"'Bilgi Girişi'!W3","v":0},null,null,{"$f":"'Bilgi Girişi'!V3","v":0},1,null,null,null,null,null,null,0]
[{"$f":"'Bilgi Girişi'!J3","v":0},null,{"$f":"'Bilgi Girişi'!Y3","v":0},null,null,{"$f":"'Bilgi Girişi'!X3","v":0},1,null,null,null,null,null,null,0]
[null,null,null,null,null,null,null,null,null,null,null,null,null,0]
[null,null,null,null,null,null,null,null,null,null,null,null,null,0]
[null,null,null,null,null,null,null,null,null,null,null,null,null,0]
[]
[null,null,null,null,null,null,null,null,{"$f":"SUM(I10:I18)","v":142.94999999999999},{"$f":"SUM(J10:J18)","v":0},{"$f":"SUM(K10:K18)","v":1906},null,{"$f":"SUM(M10:M18)","v":0},{"$f":"SUM(N10:N18)","v":2048.9499999999998}]
[]
["   İstanbuldan Ankaraya   atana ve/aile fertlerine ait yurtiçi sürekli"]
["görev yolluğu olarak tahakkuk eden …................. TL. 'sını gösterir bildirimdir.  "]
[]
[]
[null,null,null,null,null,null,null,null,"BİRİM YETKİLİSİ  (1)",null,null,null,"….../…./.....                                                                                    Bildirim Sahibi                      İmza"]
[]
["(1) Bu kısım  bildirim sahibinin atama işlemlerinde",null,null,null,null,null,null,null,"ADI SOYADI : "]
["     bilgisi olan amir tarafından imzalanacaktır.",null,null,null,null,null,null,null,"ÜNVANI         : "]
[null,null,null,null,null,null,null,null,"İMZASI  :"]

{"sheet":"H Cetveli","index":3,"n_rows":30,"n_cols":3,"rows_kept":30,"cut":false,"hidden":false,"merged":[[0,0,0,1],[1,0,1,1],[2,0,2,1],[3,0,3,1]]}
["H CETVELİ"]
["10/2/1954 TARİHLİ VE 6245 SAYILI HARCIRAH KANUNU"]
["HÜKÜMLERİ UYARINCA VERİLECEK GÜNDELİK VE TAZMİNAT"]
["TUTARLARI"]
[null,"GÜNDELİK MİKTARI (TL)"]
["I- Yurt İçinde Verilecek Gündelikler (Madde : 33)"]
["A-   a) Türkiye Büyük Millet Meclisi Başkanı ve Cumhurbaşkanı Yardımcıları",80.5]
["b) Anayasa Mahkemesi Başkanı, Bakanlar, Genelkurmay Başkanı, Milletvekilleri, Kuvvet"]
["Komutanları, Jandarma Genel Komutanı, Sahil Güvenlik Komutanı,"]
["Cumhurbaşkanlığı İdari İşler Başkanı, Türkiye Büyük Millet Meclisi Genel Sekreteri, Orgeneraller,"]
["Oramiraller, Yargıtay, Danıştay, Uyuşmazlık Mahkemesi ve Sayıştay Başkanları, Yargıtay"]
["Cumhuriyet Başsavcısı, Danıştay Başsavcısı, Diyanet İşleri ve Yükseköğretim Kurulu Başkanları",73.5]
["B- Memur ve Hizmetlilerden;"]
["a) Ek göstergesi 8000 ve daha yüksek olan kadrolarda bulunanlar (1)",61.65]
["b) Ek göstergesi 5800 (dahil) - 8000 (hariç) olan kadrolarda bulunanlar",57.55]
["c) Ek göstergesi 3000 (dahil) - 5800 (hariç) olan kadrolarda bulunanlar",54.05]
["d) Aylık/kadro derecesi 1-4 olanlar",47.65]
["e) Aylık/kadro derecesi 5-15 olanlar",46.35]
[]
[]
["(1)   6245 sayılı Harcırah Kanununun 33 üncü maddesinin (b) fıkrasına göre verilecek gündeliklerin hesabında bu tutar esas alınır."]
["*   6245 sayılı Harcırah Kanununun 33 üncü maddesinin (b) fıkrasına göre yatacak yer temini için ödenecek ücretlerin hesabında gündeliklerinin %50 artırımlı miktarı, (d) fıkrasına göre yapılacak ödemelerde ise görevlendirmenin ilk 10 günü için gündeliklerinin %50 artırımlı miktarı, takip eden 80 günü için gündeliklerinin"]
["%50 si, müteakip 90 günü için ise müstehak oldukları gündeliklerinin %40’ı  esas alınır."]
["II- Arazi Üzerinde Çalışanlara Verilecek Tazminatlar (Madde 50)"]
["50 nci Maddenin 1, 2, 3, 4 ve 5 inci Bentlerinde Yer Alan Personel :"]
["a)","Kadro derecesi 1-4 olanlar",18.899999999999999]
["b)","Kadro derecesi 5-15 olanlar",18.25]
["Bu tazminattan yararlananlardan;"]
["1)   Memuriyet mahalli dışındaki çalışma alanlarında hizmet görenler ile 24/2/1984 tarihli ve 2981 sayılı Kanun uygulamasında çalışan Tapu ve Kadastro Genel Müdürlüğü personeline yukarıda yazılı miktarların yarısı ek olarak ödenir."]
["2)   Bu çalışmaları dolayısıyla arazide, şantiyede veya gemilerde geceleyenlere bu suretle bulunacak miktarın yarısı ek olarak ayrıca ödenir."]

{"sheet":"Ayarlar","index":4,"n_rows":14,"n_cols":12,"rows_kept":14,"cut":false,"hidden":false,"merged":[[13,0,13,11]]}
["Öğretmen",2.5000000000000001E-2,"Eşi",null,null,1,null,"DERECE","EK GÖSTERGE",null,"DERECE","YEVMİYE TUTARI"]
["Memur",0.05,"Oğlu",null,null,2,null,8,450,null,"5-15 ARASI",46.35]
["Vhki",null,"Kızı",null,null,3,null,7,500,null,"2-4 ARASI",47.65]
["Şube Müdürü",null,"Babası",null,null,null,null,6,800,null,1,54.05]
[null,null,"Annesi",null,null,null,null,5,900]
[null,null,"Diğer",null,null,null,null,4,1100]
[null,null,null,null,null,null,null,3,1600]
[null,null,null,null,null,null,null,2,2200]
[null,null,null,null,null,null,null,1,3000]
[]
[]
[]
[]
["DİKKAT!!! LÜTFEN İÇİNDE BULUNDUĞUNUZ YILA AİT GÜNCELLEMELERİ YAPARAK PROGRAMI KULLANINIZ. RAKAMLAR  2021 YILINA AİTTİR."]

{"sheet":"ÖEB","index":5,"n_rows":9,"n_cols":16,"rows_kept":9,"cut":false,"hidden":false,"merged":[[8,14,12,15]]}
[]
[]
[null,null,null,null,null,null,null,null,null,null,null,null,null,null,"03.03.20.01","Yurtiçi Sürekli Görev Yollukları"]
[]
[]
[null,null,null,null,null,null,null,null,null,null,null,null,null,null,"40 149 422 291 13 68 01 03 03 20","Yeni MYS kodu"]
[]
[]
[null,null,null,null,null,null,null,null,null,null,null,null,null,null,"ÖRNEK ÖEB  2020 YILINA AİTTİR(MEB TEMEL EĞİTİM). SÜREKLİ GÖREV YOLLUKLARINDA KURUMLARIN KENDİSİNE UYGUN KODU SEÇEREK %0759 DAMGA VERGİSİ KESİNTİSİ YAPMALARI GEREKMEKTEDİR."]